bitfinex-derivatives/quotes_BTCF0:USTF0_20250822
["timestamp","ask_amount","ask_price","bid_price","bid_amount"]
[1755884343151,1.70512458,116860.0,116850.0,0.33598]
[1755884343452,2.10791371,116860.0,116850.0,0.33598]
[1755884344142,2.10791371,116860.0,116850.0,0.18842]
[1755884346552,2.10791371,116860.0,116850.0,0.10921]
[1755884346751,1.70512458,116860.0,116850.0,0.14962]
[1755884346947,2.10791371,116860.0,116850.0,0.07273]
[1755884347148,2.08933263,116860.0,116850.0,0.07273]
[1755884347355,1.7051336,116860.0,116850.0,0.0002]
[1755884347554,2.10792273,116860.0,116850.0,0.0002]
[1755884348555,2.10792273,116860.0,116850.0,0.12746]
[1755884348556,1.7051336,116860.0,116850.0,0.12746]
[1755884348756,2.10792273,116860.0,116850.0,0.12746]
[1755884349454,2.10792273,116860.0,116850.0,0.14838]
[1755884350163,2.10792273,116860.0,116850.0,0.07149]
[1755884350452,2.10792273,116860.0,116850.0,0.05057]
[1755884350645,2.10792273,116860.0,116850.0,0.0002]
[1755884351947,2.10580273,116860.0,116850.0,0.0002]
[1755884352150,1.21676273,116860.0,116850.0,0.0002]
[1755884352360,2.10548273,116860.0,116850.0,0.0002]
[1755884353553,2.35548273,116860.0,116850.0,0.0002]
[1755884353753,0.13755,116840.0,116830.0,0.33559]
[1755884353948,2.01708923,116840.0,116830.0,0.33559]
[1755884354353,0.34647,116830.0,116820.0,0.05037]
[1755884354659,0.34647,116820.0,116810.0,0.33559]
[1755884354861,2.03623006,116820.0,116810.0,0.33559]
[1755884355561,2.03623006,116820.0,116810.0,0.2177]
[1755884355855,2.03623006,116820.0,116810.0,0.33559]
[1755884356652,2.03623006,116820.0,116810.0,0.33759]
[1755884356959,2.03623006,116820.0,116810.0,0.34079]
[1755884357160,1.63344093,116820.0,116810.0,0.34079]
[1755884357361,2.03623006,116820.0,116810.0,0.2209]
[1755884357563,2.03623006,116820.0,116810.0,0.2189]
[1755884357963,2.03623006,116820.0,116810.0,0.33679]
[1755884358160,2.03623006,116820.0,116810.0,0.0012]
[1755884358161,2.04461549,116820.0,116810.0,0.0012]
[1755884358360,2.29461549,116820.0,116810.0,0.0012]
[1755884359365,2.29397549,116820.0,116810.0,0.0012]
[1755884359564,1.89118636,116820.0,116810.0,0.12846]
[1755884359766,1.63260093,116820.0,116810.0,0.22731154]
[1755884359961,1.57987093,116820.0,116810.0,0.34520154]
[1755884360160,1.57987093,116820.0,116810.0,0.74799067]
[1755884360360,1.63260093,116820.0,116810.0,0.74799067]
[1755884360766,1.45719093,116820.0,116810.0,1.08360187]
[1755884360960,1.54636093,116820.0,116810.0,1.08360187]
[1755884362765,0.01926083,116820.0,116810.0,1.08360187]
[1755884363755,0.01926083,116820.0,116810.0,1.44440187]
[1755884364362,0.01926083,116820.0,116810.0,1.04161274]
[1755884364564,0.01926083,116820.0,116810.0,1.44440187]
[1755884365068,1.40216388,116840.0,116830.0,0.4211865]
[1755884365264,1.5434081,116840.0,116830.0,0.33579]
[1755884365471,1.5961381,116840.0,116830.0,0.73857913]
[1755884366073,1.5971381,116840.0,116830.0,0.73857913]
[1755884366573,1.5981381,116840.0,116830.0,0.73857913]
[1755884367272,1.2373381,116840.0,116830.0,0.73857913]
[1755884368676,1.2373381,116840.0,116830.0,0.33579]
[1755884368978,1.2373381,116840.0,116830.0,0.73857913]
[1755884369278,1.2373381,116840.0,116830.0,0.33579]
[1755884369576,1.2373381,116840.0,116830.0,0.73857913]
[1755884370079,1.2373381,116840.0,116830.0,0.82417563]
[1755884371072,0.3860481,116840.0,116830.0,0.82417563]
[1755884371273,2.7717681,116840.0,116830.0,0.82417563]
[1755884372373,2.7717681,116840.0,116830.0,0.4213865]
[1755884372573,2.7717681,116840.0,116830.0,0.82417563]
[1755884372780,2.7717681,116840.0,116830.0,0.4213865]
[1755884372982,2.8573607,116840.0,116830.0,0.82417563]
[1755884373573,2.8573607,116840.0,116830.0,0.4213865]
[1755884373774,2.8573607,116840.0,116830.0,0.82417563]
[1755884373979,3.2181607,116840.0,116830.0,0.82417563]
[1755884374281,1.9716407,116840.0,116830.0,0.82417563]
[1755884374685,2.8037107,116840.0,116830.0,0.4213865]
[1755884374982,2.8564407,116840.0,116830.0,0.73857913]
[1755884375288,2.8564407,116840.0,116830.0,0.82417563]
[1755884375486,2.8564407,116840.0,116830.0,0.73857913]
[1755884375686,2.8564407,116840.0,116830.0,0.82417563]
[1755884376587,2.8564407,116840.0,116830.0,0.33579]
[1755884376787,2.8564407,116840.0,116830.0,0.73857913]
[1755884377088,2.8564407,116840.0,116830.0,0.82417563]
[1755884377887,0.4716373,116840.0,116830.0,0.6713865]
[1755884378084,1.3032273,116840.0,116830.0,1.43497563]
[1755884378285,1.3032273,116840.0,116830.0,1.07417563]
[1755884378486,2.5948381,116840.0,116830.0,1.07417563]
[1755884378785,1.6771281,116840.0,116830.0,1.07417563]
[1755884379285,1.6751281,116840.0,116830.0,1.43497563]
[1755884379697,1.65656388,116840.0,116830.0,1.43497563]
[1755884379988,1.77082388,116840.0,116830.0,1.43497563]
[1755884380184,1.77082388,116840.0,116830.0,1.0321865]
[1755884380381,1.65656388,116840.0,116830.0,1.43497563]
[1755884381490,0.4149,116860.0,116830.0,1.83776476]
[1755884381791,1.23996541,116860.0,116850.0,0.82300103]
[1755884381990,1.23992541,116860.0,116850.0,0.82320103]
[1755884382592,1.23992541,116860.0,116850.0,1.07320103]
[1755884382992,1.24092541,116860.0,116850.0,0.98761913]
[1755884383496,1.24092541,116860.0,116850.0,0.99602914]
[1755884384692,1.23992541,116860.0,116850.0,0.99602914]
[1755884384893,1.24092541,116860.0,116850.0,0.99602914]
[1755884385494,1.23992541,116860.0,116850.0,0.99602914]
[1755884385692,1.23924541,116860.0,116850.0,0.67882191]
[1755884385899,1.23924541,116860.0,116850.0,1.08161104]
[1755884387788,1.23924541,116860.0,116850.0,0.59324001]
[1755884387993,1.23924541,116860.0,116850.0,0.99602914]
[1755884391400,1.23924541,116860.0,116850.0,1.35682914]
[1755884392704,1.23924541,116860.0,116850.0,0.99602914]
[1755884394698,1.23924541,116860.0,116850.0,1.08161084]
[1755884397296,0.35632541,116860.0,116850.0,1.08161084]
[1755884397497,1.23748541,116860.0,116850.0,1.08161084]
[1755884397798,1.23748541,116860.0,116850.0,0.67882171]
[1755884398007,1.23748541,116860.0,116850.0,1.08161084]
[1755884398306,0.35632541,116860.0,116850.0,1.08161084]
[1755884398506,1.23720541,116860.0,116850.0,1.08161084]
[1755884398801,0.60286541,116860.0,116760.0,1.68747663]
[1755884398994,0.60286541,116860.0,116730.0,0.07414]
[1755884398995,0.0856624,116740.0,116730.0,0.07414]
[1755884399300,1.30281182,116740.0,116730.0,0.19219]
[1755884399495,0.2402971,116720.0,116710.0,0.19219]
[1755884399697,1.38875198,116720.0,116710.0,0.27883]
[1755884400006,1.38875188,116720.0,116710.0,0.27883]
[1755884400208,0.74566575,116720.0,116710.0,0.52883]
[1755884400401,1.37884499,116720.0,116710.0,0.52883]
[1755884400600,1.37884499,116720.0,116710.0,1.40931]
[1755884401398,0.38486575,116720.0,116710.0,1.40931]
[1755884401703,0.90034195,116720.0,116710.0,1.41531]
[1755884401905,0.90034195,116720.0,116710.0,1.42392725]
[1755884402208,0.90034195,116720.0,116710.0,1.42412725]
[1755884403404,1.52831419,116720.0,116710.0,0.29364725]
[1755884403707,0.90034195,116720.0,116710.0,0.34944725]
[1755884404900,1.64834419,116720.0,116710.0,1.11147725]
[1755884405106,1.78998419,116720.0,116710.0,1.26177725]
[1755884405505,1.82051419,116720.0,116710.0,0.06865725]
[1755884406106,1.34716195,116720.0,116710.0,0.06865725]
[1755884406304,1.82051419,116720.0,116710.0,0.06865725]
[1755884406501,1.64465419,116720.0,116710.0,0.06865725]
[1755884406805,1.64465419,116720.0,116710.0,0.19260725]
[1755884407009,1.82051419,116720.0,116710.0,0.06865725]
[1755884407508,2.70059419,116720.0,116710.0,0.00881725]
[1755884407809,2.22724195,116720.0,116710.0,0.01081725]
[1755884408111,2.70059419,116720.0,116710.0,0.0022]
[1755884408506,2.22724195,116720.0,116710.0,0.0022]
[1755884408711,2.70059419,116720.0,116710.0,0.07072]
[1755884408914,0.3608,116680.0,116620.0,4e-05]
[1755884409205,0.3608,116640.0,116630.0,0.35431]
[1755884409410,0.7216,116640.0,116630.0,0.82766224]
[1755884409609,0.8073354,116640.0,116630.0,0.35431]
[1755884410015,0.7216,116640.0,116630.0,0.35431]
[1755884410516,0.7216,116640.0,116630.0,0.60431]
[1755884410812,0.7216,116640.0,116630.0,1.07766224]
[1755884411003,0.8073354,116640.0,116630.0,0.60631]
[1755884411402,0.56623,116640.0,116630.0,1.16740504]
[1755884411599,0.09297,116640.0,116630.0,1.08166224]
[1755884411802,0.7000997,116670.0,116630.0,1.34076036]
[1755884412008,0.7954997,116670.0,116660.0,0.32881]
[1755884412207,0.7954997,116670.0,116660.0,1.20861]
[1755884412798,1.26885194,116670.0,116660.0,0.32901]
[1755884413002,0.7954997,116670.0,116660.0,1.00456]
[1755884413198,0.7954997,116670.0,116660.0,0.98697]
[1755884413417,0.7954997,116670.0,116660.0,0.87976]
[1755884413705,1.26885194,116670.0,116660.0,0.0002]
[1755884414111,1.27085194,116670.0,116660.0,0.0002]
[1755884414511,1.27285194,116670.0,116660.0,0.0002]
[1755884414705,0.7994997,116670.0,116660.0,0.32901]
[1755884414911,0.56637,116670.0,116660.0,1.05236224]
[1755884415204,0.0897132,116670.0,116660.0,1.05236224]
[1755884415404,0.3976732,116670.0,116660.0,1.05236224]
[1755884415609,0.3976732,116670.0,116660.0,0.57901]
[1755884416011,0.4366932,116670.0,116660.0,0.57901]
[1755884416210,0.4376932,116670.0,116660.0,0.57901]
[1755884416509,0.003,116670.0,116660.0,1.13808254]
[1755884416722,0.001,116670.0,116660.0,1.49888254]
[1755884417011,0.085713,116670.0,116660.0,1.05236224]
[1755884417309,0.085713,116670.0,116660.0,0.57901]
[1755884417510,0.085713,116670.0,116660.0,1.05336224]
[1755884417805,0.085713,116670.0,116660.0,0.58001]
[1755884418006,0.434693,116670.0,116660.0,0.58001]
[1755884418913,0.795493,116670.0,116660.0,0.58001]
[1755884419401,0.795493,116670.0,116660.0,1.45909]
[1755884419715,1.26884524,116670.0,116660.0,0.88028]
[1755884419917,0.795493,116670.0,116660.0,0.88028]
[1755884420606,0.4347075,116650.0,116640.0,0.10721]
[1755884420911,1.1563075,116650.0,116640.0,0.9758]
[1755884421315,1.1563075,116650.0,116640.0,1.1261]
[1755884421611,1.1563075,116650.0,116640.0,0.879]
[1755884422205,1.18184393,116650.0,116640.0,1.16479]
[1755884422406,1.1563075,116650.0,116640.0,1.23331]
[1755884423016,1.1563075,116650.0,116640.0,0.879]
[1755884423212,1.90521545,116650.0,116640.0,0.002]
[1755884423523,1.43186321,116650.0,116640.0,0.002]
[1755884423816,1.43186321,116650.0,116630.0,0.87892]
[1755884423817,0.4347148,116640.0,116630.0,0.87892]
[1755884424008,1.29442275,116640.0,116630.0,0.87912]
[1755884424210,0.82107051,116640.0,116630.0,1.12622]
[1755884424608,0.82107051,116640.0,116630.0,0.97592]
[1755884424817,0.82107051,116640.0,116630.0,1.12622]
[1755884426317,0.82107051,116640.0,116630.0,1.12822]
[1755884426522,0.82107051,116640.0,116630.0,0.88212]
[1755884426713,0.67366051,116640.0,116630.0,1.70978224]
[1755884426919,0.82107051,116640.0,116630.0,1.23643]
[1755884428721,0.89369051,116640.0,116630.0,1.23643]
[1755884431016,0.89369051,116640.0,116630.0,0.0032]
[1755884431231,1.61704275,116640.0,116630.0,0.0032]
[1755884431722,1.14369051,116640.0,116630.0,0.0032]
[1755884432421,1.21386181,116640.0,116630.0,0.0032]
[1755884432815,1.68721405,116640.0,116630.0,0.0032]
[1755884433012,0.507342,116630.0,116620.0,0.00836735]
[1755884433225,1.36704995,116630.0,116620.0,0.00836735]
[1755884433622,0.89369771,116630.0,116620.0,0.00836735]
[1755884434125,1.36704995,116630.0,116620.0,4e-05]
[1755884434319,1.36704995,116630.0,116620.0,0.00204]
[1755884434515,2.50180995,116630.0,116620.0,0.00504]
[1755884435124,0.5330592,116620.0,116610.0,0.0172744]
[1755884435322,0.91941491,116620.0,116610.0,0.1192544]
[1755884435523,0.91941491,116620.0,116610.0,0.2782444]
[1755884435830,0.91941491,116620.0,116610.0,0.0172744]
[1755884436020,1.64276715,116620.0,116610.0,0.0172744]
[1755884436320,0.5330665,116610.0,116600.0,0.11067142]
[1755884436522,0.91942221,116610.0,116600.0,0.2904]
[1755884436720,0.91942221,116610.0,116600.0,1.17576]
[1755884437027,0.55862221,116610.0,116600.0,1.29225]
[1755884437224,0.55862221,116610.0,116600.0,1.76560224]
[1755884437425,0.91942221,116610.0,116600.0,1.76560224]
[1755884437624,0.91942221,116610.0,116600.0,1.29225]
[1755884438026,0.91942221,116610.0,116600.0,1.77397651]
[1755884438420,0.55862221,116610.0,116600.0,1.77397651]
[1755884439224,0.55862221,116610.0,116600.0,1.30062427]
[1755884439426,0.55862221,116610.0,116600.0,1.30662427]
[1755884440226,0.55862221,116610.0,116600.0,1.77997651]
[1755884440429,0.51720221,116610.0,116600.0,1.77997651]
[1755884440630,0.55862221,116610.0,116600.0,1.30662427]
[1755884440828,0.40463221,116610.0,116600.0,2.11574041]
[1755884441027,0.40463221,116610.0,116600.0,1.55662427]
[1755884441028,0.11131221,116610.0,116600.0,1.55662427]
[1755884441228,0.11131221,116610.0,116600.0,2.02997651]
[1755884441534,0.02555571,116610.0,116600.0,2.11574041]
[1755884441727,0.02555571,116610.0,116600.0,2.47654041]
[1755884442030,0.3608,116620.0,116600.0,2.11574041]
[1755884442230,0.02422149,116620.0,116610.0,1.25557874]
[1755884442435,0.02422149,116620.0,116610.0,1.61657874]
[1755884442824,0.02422149,116620.0,116610.0,1.63410843]
[1755884443028,0.5566981,116640.0,116620.0,0.5322192]
[1755884443230,0.8466681,116640.0,116630.0,1.14954]
[1755884443431,0.8466681,116640.0,116630.0,1.62309224]
[1755884443633,0.8466681,116640.0,116630.0,1.87309224]
[1755884443838,0.8938481,116640.0,116630.0,0.0002]
[1755884444041,0.8938481,116640.0,116630.0,0.2904]
[1755884444245,0.8938481,116640.0,116630.0,0.44667]
[1755884444443,0.8948481,116640.0,116630.0,0.44667]
[1755884447047,0.8948481,116640.0,116630.0,0.46375621]
[1755884447846,0.001,116640.0,116630.0,1.63365025]
[1755884448038,0.3608,116660.0,116650.0,0.46411122]
[1755884448039,0.5330326,116660.0,116650.0,0.46411122]
[1755884448240,0.5330326,116660.0,116650.0,1.81858346]
[1755884448547,0.8938326,116660.0,116650.0,1.81858346]
[1755884449338,0.7408426,116660.0,116650.0,1.90431066]
[1755884449537,0.2227026,116660.0,116650.0,1.90431066]
[1755884449738,0.001,116660.0,116650.0,2.15431066]
[1755884449938,0.003,116660.0,116650.0,2.51511066]
[1755884450149,0.003,116660.0,116650.0,2.9884629]
[1755884450639,0.53426079,116680.0,116670.0,0.44647]
[1755884450840,0.53426079,116680.0,116670.0,1.79950224]
[1755884451139,0.5152478,116680.0,116670.0,1.57615]
[1755884451347,0.8466378,116680.0,116670.0,1.57615]
[1755884451747,0.8466378,116680.0,116670.0,2.04950224]
[1755884452345,0.8938178,116680.0,116670.0,1.06005]
[1755884452748,0.8938178,116680.0,116670.0,1.21904]
[1755884452956,0.8948178,116680.0,116670.0,1.21904]
[1755884453547,0.8968178,116680.0,116670.0,1.21904]
[1755884454850,0.8968178,116680.0,116670.0,1.32615]
[1755884455048,0.91778801,116680.0,116670.0,1.32615]
[1755884455452,0.91778801,116680.0,116670.0,0.87968]
[1755884455849,0.91778801,116680.0,116670.0,0.0002]
[1755884456250,1.64114025,116680.0,116670.0,0.0002]
[1755884456656,2.52046025,116680.0,116670.0,0.0002]
[1755884456851,2.52046025,116680.0,116670.0,1e-07]
[1755884457046,2.52046025,116680.0,116650.0,1.16306122]
[1755884457047,0.0857198,116660.0,116650.0,0.92891122]
[1755884457355,1.27560001,116660.0,116650.0,0.01764122]
[1755884457548,1.27560001,116660.0,116650.0,0.27861122]
[1755884458460,1.27560001,116660.0,116650.0,0.11962122]
[1755884458954,1.27560001,116660.0,116650.0,0.27961122]
[1755884459156,1.27560001,116660.0,116650.0,0.46511122]
[1755884459752,0.55400001,116660.0,116650.0,0.93946346]
[1755884460053,0.91480001,116660.0,116650.0,0.93946346]
[1755884460243,0.76081001,116660.0,116650.0,0.46511122]
[1755884460553,0.10669001,116660.0,116650.0,1.27339066]
[1755884460852,0.5161861,116670.0,116660.0,0.0857198]
[1755884461150,0.5161861,116670.0,116660.0,1.80655204]
[1755884461151,0.02095668,116670.0,116660.0,1.80655204]
[1755884461351,0.6644024,116670.0,116660.0,0.20929]
[1755884461557,0.83934507,116670.0,116660.0,1.24748]
[1755884462155,0.84034589,116670.0,116660.0,1.24748]
[1755884462356,0.8193924,116670.0,116660.0,1.24748]
[1755884462557,0.84034359,116670.0,116660.0,1.24748]
[1755884463156,0.84234359,116670.0,116660.0,1.24748]
[1755884463459,0.8213924,116670.0,116660.0,1.24748]
[1755884463655,0.83934364,116670.0,116660.0,0.87932]
[1755884464252,0.83934364,116670.0,116660.0,1.2474]
[1755884464452,0.8183924,116670.0,116660.0,1.2474]
[1755884464960,0.1564524,116670.0,116660.0,1.80647204]
[1755884465160,0.0887124,116670.0,116660.0,1.80647204]
[1755884465361,0.10966516,116670.0,116660.0,1.72075224]
[1755884465766,0.28982516,116670.0,116660.0,1.72075224]
[1755884466058,0.44946516,116670.0,116660.0,1.2474]
[1755884466363,0.44646516,116670.0,116660.0,1.72075224]
[1755884467058,0.84860516,116670.0,116660.0,1.23966]
[1755884468463,0.84860516,116670.0,116660.0,1.20771]
[1755884468858,0.84860516,116670.0,116660.0,0.9813]
[1755884469056,1.3229574,116670.0,116660.0,0.87932]
[1755884469458,0.84960516,116670.0,116660.0,0.87932]
[1755884469958,0.85160516,116670.0,116660.0,1.13726]
[1755884470164,0.49080516,116670.0,116660.0,1.23549]
[1755884470365,0.85160516,116670.0,116660.0,1.23549]
[1755884470562,0.85160516,116670.0,116660.0,1.70884224]
[1755884471266,0.88078516,116670.0,116660.0,1.70884224]
[1755884471461,0.92803516,116670.0,116660.0,1.23549]
[1755884472155,0.38475276,116670.0,116660.0,2.04456204]
[1755884472352,0.02395276,116670.0,116660.0,2.04456204]
[1755884473266,0.5600378,116690.0,116680.0,0.18151]
[1755884473559,0.5600378,116690.0,116680.0,1.70872224]
[1755884473867,0.5186978,116690.0,116680.0,1.70872224]
[1755884474960,0.7862978,116690.0,116680.0,1.23537]
[1755884475160,0.8276378,116690.0,116680.0,1.2439618]
[1755884475760,0.8316378,116690.0,116680.0,1.2439618]
[1755884476164,0.8316378,116690.0,116680.0,1.71731404]
[1755884476464,0.9080678,116690.0,116680.0,1.71731404]
[1755884477374,0.9080678,116690.0,116680.0,1.2439618]
[1755884481370,0.9080678,116690.0,116680.0,0.1154818]
[1755884481566,1.38142004,116690.0,116680.0,0.0087918]
[1755884481971,1.63142004,116690.0,116680.0,0.0087918]
[1755884482274,1.1580678,116690.0,116680.0,0.0002]
[1755884482467,1.63142004,116690.0,116680.0,0.0002]
[1755884485162,0.9080678,116690.0,116680.0,0.10689]
[1755884485472,2.28007736,116690.0,116680.0,0.0002]
[1755884485973,1.80672512,116690.0,116680.0,0.0002]
[1755884486672,2.28007736,116690.0,116680.0,0.0002]
[1755884487073,1.80672512,116690.0,116680.0,0.0002]
[1755884487273,2.28007736,116690.0,116680.0,0.0002]
[1755884488375,1.80672512,116690.0,116680.0,0.0002]
[1755884488576,2.28007736,116690.0,116680.0,0.0002]
[1755884490676,1.80672512,116690.0,116680.0,0.0002]
[1755884490977,2.28007736,116690.0,116680.0,0.0002]
[1755884491476,1.80672512,116690.0,116680.0,0.0002]
[1755884494071,0.5432751,116680.0,116670.0,0.00837951]
[1755884494278,0.2701098,116660.0,116650.0,0.44778122]
[1755884494479,0.9040898,116660.0,116650.0,0.44778122]
[1755884495284,0.92412617,116660.0,116650.0,0.45421998]
[1755884495484,0.92412617,116660.0,116650.0,0.38678998]
[1755884495880,1.39747841,116660.0,116650.0,0.01764122]
[1755884496485,1.39747841,116660.0,116650.0,0.0292645]
[1755884496881,1.64747841,116660.0,116650.0,0.01764122]
[1755884497685,0.0857345,116640.0,116630.0,0.19046028]
[1755884497983,0.90286087,116640.0,116630.0,0.45920028]
[1755884498184,0.90286087,116640.0,116630.0,0.52561028]
[1755884499183,0.8828245,116640.0,116630.0,0.52561028]
[1755884499781,0.8828245,116640.0,116630.0,0.52761028]
[1755884499983,0.8828245,116640.0,116630.0,0.52861028]
[1755884500588,0.8828245,116640.0,116630.0,0.53708565]
[1755884501275,0.5220245,116640.0,116630.0,0.53708565]
[1755884501489,0.5220245,116640.0,116630.0,1.01043789]
[1755884501988,0.8828245,116640.0,116630.0,0.53708565]
[1755884502289,0.5220245,116640.0,116630.0,0.53708565]
[1755884502989,0.8828245,116640.0,116630.0,0.53708565]
[1755884505285,0.8828245,116640.0,116630.0,0.20213565]
[1755884505480,1.35617674,116640.0,116630.0,0.09831565]
[1755884506179,1.35617674,116640.0,116630.0,0.02876158]
[1755884506894,0.8828245,116640.0,116630.0,0.02876158]
[1755884507298,0.8828245,116640.0,116610.0,0.45629969]
[1755884507299,0.5220392,116620.0,116610.0,0.45629969]
[1755884507598,0.8828392,116620.0,116610.0,0.45629969]
[1755884508396,0.8828392,116620.0,116610.0,0.46477798]
[1755884508593,0.8828392,116620.0,116610.0,0.46677798]
[1755884509298,0.8828392,116620.0,116610.0,0.46977798]
[1755884510091,0.5220392,116620.0,116610.0,0.53891784]
[1755884511194,0.8828392,116620.0,116610.0,0.53891784]
[1755884511397,0.8828392,116620.0,116610.0,0.10034784]
[1755884511596,0.8828392,116620.0,116610.0,0.13502798]
[1755884511784,0.8828392,116620.0,116610.0,0.03120798]
[1755884512696,1.35619144,116620.0,116610.0,0.03120798]
[1755884513089,0.8828392,116620.0,116610.0,0.03120798]
[1755884513290,1.35619144,116620.0,116610.0,0.03120798]
[1755884514696,0.8828392,116620.0,116610.0,0.03120798]
[1755884514896,1.35619144,116620.0,116610.0,0.03120798]
[1755884515096,1.35619144,116620.0,116610.0,0.02272969]
[1755884515292,2.23403144,116620.0,116610.0,0.03103622]
[1755884515692,1.7606792,116620.0,116610.0,0.13485622]
[1755884515998,1.7606792,116620.0,116610.0,0.28673622]
[1755884516496,1.7606792,116620.0,116610.0,0.13485622]
[1755884516792,1.7606792,116620.0,116610.0,0.40359622]
[1755884516994,1.7606392,116620.0,116610.0,0.94315846]
[1755884517291,0.8828392,116620.0,116610.0,0.94315846]
[1755884517693,0.8828392,116620.0,116610.0,0.46980622]
[1755884520399,0.8828392,116620.0,116610.0,0.87436809]
[1755884521598,0.8828392,116620.0,116610.0,0.45227653]
[1755884522196,0.8828392,116620.0,116610.0,0.8568384]
[1755884523190,0.8828392,116620.0,116610.0,0.45227653]
[1755884523392,0.8828392,116620.0,116610.0,0.8568384]
[1755884523590,0.8828392,116620.0,116610.0,0.08860653]
[1755884523794,0.8828392,116620.0,116610.0,0.11732653]
[1755884523795,1.2436392,116620.0,116610.0,0.11732653]
[1755884524091,1.64820107,116620.0,116610.0,0.01350653]
[1755884524302,1.66733007,116620.0,116610.0,0.01350653]
[1755884524498,1.2436392,116620.0,116610.0,0.26920653]
[1755884524893,1.2436392,116620.0,116610.0,0.29808653]
[1755884525201,1.2627793,116620.0,116610.0,0.29808653]
[1755884525394,1.2627793,116620.0,116610.0,0.34430653]
[1755884525395,1.2436392,116620.0,116610.0,0.34430653]
[1755884525596,1.2436392,116620.0,116610.0,0.7488684]
[1755884525902,1.2436392,116620.0,116610.0,0.38458653]
[1755884526307,1.26278078,116620.0,116610.0,0.08860653]
[1755884526501,0.085764,116600.0,116590.0,1.05397063]
[1755884526702,0.891154,116600.0,116590.0,0.50284048]
[1755884527396,0.891154,116600.0,116590.0,0.90740235]
[1755884527708,0.80539,116600.0,116590.0,1.15740235]
[1755884527908,0.35446,116600.0,116590.0,0.75284048]
[1755884528304,0.35446,116600.0,116590.0,1.11364048]
[1755884528305,0.19675,116600.0,116590.0,1.11364048]
[1755884528500,0.30629872,116600.0,116590.0,0.75684048]
[1755884528700,0.46400872,116600.0,116590.0,0.76084048]
[1755884529401,0.46400872,116600.0,116590.0,1.16540235]
[1755884529600,0.46400872,116600.0,116590.0,1.25117365]
[1755884529601,0.11843872,116600.0,116590.0,1.25117365]
[1755884529796,0.63195,116620.0,116600.0,0.24207]
[1755884530001,0.8911392,116620.0,116610.0,0.41262]
[1755884530200,0.5303392,116620.0,116610.0,0.41282]
[1755884530412,0.8911392,116620.0,116610.0,0.41282]
[1755884530611,0.91026254,116620.0,116610.0,0.41282]
[1755884530815,0.91026254,116620.0,116610.0,0.0002]
[1755884531207,1.16026254,116620.0,116610.0,0.0002]
[1755884531617,1.16026254,116620.0,116610.0,0.0022]
[1755884532214,1.16026254,116620.0,116610.0,0.00321652]
[1755884532714,1.16026254,116620.0,116610.0,0.10232652]
[1755884533211,1.16026254,116620.0,116610.0,0.00321652]
[1755884533612,1.56482441,116620.0,116610.0,0.00321652]
[1755884533813,0.5303539,116600.0,116590.0,1.66603235]
[1755884534018,0.8911539,116600.0,116590.0,1.26147048]
[1755884534205,0.44459,116600.0,116590.0,1.26147048]
[1755884534603,0.44459,116600.0,116590.0,1.66603235]
[1755884534807,0.28688,116600.0,116590.0,1.66603235]
[1755884535008,0.12642,116600.0,116590.0,1.26147048]
[1755884535306,0.44459,116600.0,116590.0,1.26447048]
[1755884535609,0.02869,116600.0,116590.0,2.27983235]
[1755884535814,0.7176995,116620.0,116600.0,0.41262]
[1755884536012,0.7176995,116620.0,116610.0,0.41262]
[1755884536013,0.25961511,116620.0,116610.0,0.41262]
[1755884536205,0.41732511,116620.0,116610.0,0.81718187]
[1755884536407,0.41732511,116620.0,116610.0,1.06718187]
[1755884536606,0.25961511,116620.0,116610.0,1.06718187]
[1755884536820,0.16188511,116620.0,116610.0,1.06718187]
[1755884537012,0.25961511,116620.0,116610.0,1.06738187]
[1755884537216,0.41732511,116620.0,116610.0,1.06738187]
[1755884537414,0.55009431,116620.0,116610.0,0.66282]
[1755884537615,0.91089431,116620.0,116610.0,0.66282]
[1755884538119,0.91089431,116620.0,116610.0,1.06738187]
[1755884538417,0.91089431,116620.0,116610.0,0.66482]
[1755884539114,0.91089431,116620.0,116610.0,0.42275]
[1755884539311,1.31545618,116620.0,116610.0,0.0022]
[1755884539509,0.91089431,116620.0,116610.0,0.0022]
[1755884539913,1.16089431,116620.0,116610.0,0.0022]
[1755884540422,1.16089431,116620.0,116610.0,0.10131]
[1755884540811,1.16089431,116620.0,116610.0,0.0022]
[1755884541508,1.16089431,116620.0,116610.0,0.10131]
[1755884542418,1.16089431,116620.0,116610.0,0.0022]
[1755884543713,1.16089431,116620.0,116610.0,0.24917]
[1755884543913,1.16089431,116620.0,116610.0,0.0022]
[1755884544617,1.63507501,116620.0,116610.0,0.0022]
[1755884545014,1.16089431,116620.0,116610.0,0.0022]
[1755884545414,1.16089431,116620.0,116610.0,0.10131]
[1755884545817,1.16089431,116620.0,116610.0,0.0022]
[1755884546724,0.91089431,116620.0,116610.0,0.10131]
[1755884547121,0.91089431,116620.0,116610.0,0.0022]
[1755884547520,1.38507501,116620.0,116610.0,0.0022]
[1755884548219,0.91089431,116620.0,116610.0,0.0022]
[1755884548421,1.38507501,116620.0,116610.0,0.0022]
[1755884548722,0.91089431,116620.0,116610.0,0.0022]
[1755884549020,1.38507501,116620.0,116610.0,0.0022]
[1755884549530,0.91089431,116620.0,116610.0,0.0022]
[1755884549825,1.38507501,116620.0,116610.0,0.0022]
[1755884550126,0.91089431,116620.0,116610.0,0.0022]
[1755884550728,1.38507501,116620.0,116610.0,0.0022]
[1755884551026,0.91089431,116620.0,116610.0,0.10131]
[1755884551428,0.91089431,116620.0,116610.0,0.32061]
[1755884551926,0.91089431,116620.0,116610.0,0.17275]
[1755884552128,0.39238431,116620.0,116610.0,2.1208507]
[1755884552320,0.55009431,116620.0,116610.0,2.1208507]
[1755884552517,0.55009431,116620.0,116610.0,1.64667]
[1755884552736,0.55009431,116620.0,116610.0,2.1208507]
[1755884554213,0.5303392,116620.0,116610.0,1.39667]
[1755884554415,0.5303392,116620.0,116610.0,0.41403]
[1755884554829,0.5303392,116620.0,116610.0,1.39619]
[1755884555320,0.5303392,116620.0,116610.0,1.8703707]
[1755884555822,0.5303392,116620.0,116610.0,0.8882107]
[1755884556022,0.5303392,116620.0,116610.0,1.8689307]
[1755884556621,0.5237592,116620.0,116610.0,1.64475]
[1755884556822,0.3726292,116620.0,116610.0,2.1189307]
[1755884557119,0.279245,116630.0,116620.0,0.2622592]
[1755884557318,0.28135,116640.0,116630.0,0.2161219]
[1755884557534,0.0857345,116640.0,116630.0,1.9100726]
[1755884557927,0.8790108,116650.0,116640.0,0.32507]
[1755884558123,0.90088901,116650.0,116640.0,0.8922207]
[1755884558325,0.90088901,116650.0,116640.0,0.41804]
[1755884558522,0.90088901,116650.0,116640.0,0.42639466]
[1755884559123,0.64039901,116650.0,116640.0,0.10269]
[1755884559323,0.90088901,116650.0,116640.0,0.10269]